[Event "Titled Tuesday Blitz November 01 Late 2022"]
[White "Jones, Gawain C B"]
[Black "McCoy, Owen"]
[WhiteFideId "409561"]
[BlackFideId "30924502"]
[WhiteElo "2657"]
[BlackElo "2477"]
[Result "1-0"]
[Round "01"]
[TimeControl "180+1"]
[Date "2022.11.02"]
[WhiteClock "0:01:43"]
[BlackClock "0:00:07"]

1. Nf3 {[%clk 0:02:59]}  d5 {[%clk 0:02:59]} 2. g3 {[%clk 0:03:00]}  Nf6 {[%clk 0:02:59]} 3. Bg2 {[%clk 0:03:00]}  Bg4 {[%clk 0:02:59]} 4. c4 {[%clk 0:03:00]}  c6 {[%clk 0:02:54]} 5. Qb3 {[%clk 0:02:59]}  Qb6 {[%clk 0:02:35]} 6. d3 {[%clk 0:02:59]}  Nbd7 {[%clk 0:02:23]} 7. Be3 {[%clk 0:02:58]}  Qxb3 {[%clk 0:01:55]} 8. axb3 {[%clk 0:02:59]}  a6 {[%clk 0:01:55]} 9. Bd4 {[%clk 0:02:54]}  Bxf3 {[%clk 0:01:53]} 10. Bxf3 {[%clk 0:02:54]}  e5 {[%clk 0:01:51]} 11. Bc3 {[%clk 0:02:54]}  Bd6 {[%clk 0:01:32]} 12. b4 {[%clk 0:02:51]}  Ke7 {[%clk 0:01:30]} 13. Na3 {[%clk 0:02:46]}  e4 {[%clk 0:00:53]} 14. Bg2 {[%clk 0:02:45]}  Ne5 {[%clk 0:00:40]} 15. Kd2 {[%clk 0:02:40]}  Rhd8 {[%clk 0:00:36]} 16. f4 {[%clk 0:02:33]}  Neg4 {[%clk 0:00:25]} 17. c5 {[%clk 0:02:24]}  Bc7 {[%clk 0:00:23]} 18. e3 {[%clk 0:02:22]}  exd3 {[%clk 0:00:21]} 19. Bxf6+ {[%clk 0:02:12]}  Nxf6 {[%clk 0:00:21]} 20. Kxd3 {[%clk 0:02:12]}  Kf8 {[%clk 0:00:21]} 21. Nc2 {[%clk 0:02:11]}  Re8 {[%clk 0:00:22]} 22. Bf3 {[%clk 0:02:07]}  Re7 {[%clk 0:00:22]} 23. g4 {[%clk 0:02:08]}  Rae8 {[%clk 0:00:22]} 24. g5 {[%clk 0:02:08]}  Ne4 {[%clk 0:00:22]} 25. Rhf1 {[%clk 0:02:05]}  f6 {[%clk 0:00:21]} 26. Bxe4 {[%clk 0:02:00]}  dxe4+ {[%clk 0:00:21]} 27. Kc4 {[%clk 0:01:59]}  f5 {[%clk 0:00:20]} 28. Nd4 {[%clk 0:01:59]}  g6 {[%clk 0:00:21]} 29. h4 {[%clk 0:01:59]}  h5 {[%clk 0:00:19]} 30. gxh6 {[%clk 0:01:59]}  Rh7 {[%clk 0:00:19]} 31. h5 {[%clk 0:01:59]}  gxh5 {[%clk 0:00:14]} 32. Nxf5 {[%clk 0:01:59]}  Bd8 {[%clk 0:00:12]} 33. Rg1 {[%clk 0:01:55]}  Bf6 {[%clk 0:00:12]} 34. Rg6 {[%clk 0:01:54]}  Kf7 {[%clk 0:00:12]} 35. Nd6+ {[%clk 0:01:50]}  Kxg6 {[%clk 0:00:12]} 36. Rg1+ {[%clk 0:01:51]}  Bg5 {[%clk 0:00:08]} 37. Rxg5+ {[%clk 0:01:50]}  Kf6 {[%clk 0:00:08]} 38. Nxe8+ {[%clk 0:01:50]}  Ke7 {[%clk 0:00:09]} 39. Rg7+ {[%clk 0:01:43]}  Rxg7 {[%clk 0:00:09]} 40. Nxg7 {[%clk 0:01:43]}  h4 {[%clk 0:00:06]} 41. h7 {[%clk 0:01:43]}  Kf7 {[%clk 0:00:07]} 42. h8=Q {[%clk 0:01:43]} 1-0


[Site "https://www.chess.com"]

[Event "Titled Tuesday Blitz November 01 Late 2022"]
[White "Kilic, Eray"]
[Black "Aguilar, Juan"]
[WhiteFideId "44517173"]
[BlackFideId "3800091"]
[WhiteElo "2328"]
[BlackElo "2431"]
[Result "1-0"]
[Round "01"]
[TimeControl "180+1"]
[Date "2022.11.02"]
[WhiteClock "0:01:30"]
[BlackClock "0:00:49"]

1. e4 {[%clk 0:03:00]}  c5 {[%clk 0:02:59]} 2. Nf3 {[%clk 0:03:00]}  d6 {[%clk 0:02:59]} 3. d4 {[%clk 0:03:00]}  cxd4 {[%clk 0:03:00]} 4. Nxd4 {[%clk 0:03:01]}  Nf6 {[%clk 0:03:00]} 5. Nc3 {[%clk 0:03:02]}  a6 {[%clk 0:03:00]} 6. Be3 {[%clk 0:03:00]}  e5 {[%clk 0:03:01]} 7. Nf3 {[%clk 0:03:00]}  Be7 {[%clk 0:02:59]} 8. Bc4 {[%clk 0:03:00]}  O-O {[%clk 0:02:59]} 9. O-O {[%clk 0:03:00]}  Nc6 {[%clk 0:02:58]} 10. h3 {[%clk 0:02:59]}  Be6 {[%clk 0:02:55]} 11. Qe2 {[%clk 0:02:56]}  Rc8 {[%clk 0:02:48]} 12. Bb3 {[%clk 0:02:56]}  h6 {[%clk 0:02:46]} 13. Rfd1 {[%clk 0:02:55]}  Qc7 {[%clk 0:02:36]} 14. Nd2 {[%clk 0:02:32]}  Nd4 {[%clk 0:02:27]} 15. Bxd4 {[%clk 0:02:30]}  exd4 {[%clk 0:02:27]} 16. Nd5 {[%clk 0:02:31]}  Nxd5 {[%clk 0:02:20]} 17. exd5 {[%clk 0:02:32]}  Bf5 {[%clk 0:02:20]} 18. Nf3 {[%clk 0:02:26]}  Bf6 {[%clk 0:02:00]} 19. Nxd4 {[%clk 0:02:26]}  Rfe8 {[%clk 0:01:53]} 20. Qd2 {[%clk 0:01:43]}  Bg6 {[%clk 0:01:43]} 21. c3 {[%clk 0:01:44]}  Bg5 {[%clk 0:01:42]} 22. f4 {[%clk 0:01:41]}  Bf6 {[%clk 0:01:38]} 23. Re1 {[%clk 0:01:41]}  Qc5 {[%clk 0:01:27]} 24. Kh2 {[%clk 0:01:40]}  Be4 {[%clk 0:01:24]} 25. Ne6 {[%clk 0:01:37]}  fxe6 {[%clk 0:01:17]} 26. Rxe4 {[%clk 0:01:38]}  e5 {[%clk 0:01:17]} 27. Rae1 {[%clk 0:01:36]}  Kf8 {[%clk 0:01:04]} 28. Qe2 {[%clk 0:01:34]}  Qb5 {[%clk 0:00:58]} 29. Qg4 {[%clk 0:01:31]}  exf4 {[%clk 0:00:55]} 30. Ba4 {[%clk 0:01:31]}  Rxe4 {[%clk 0:00:49]} 31. Bxb5 {[%clk 0:01:30]} 1-0


[Site "https://www.chess.com"]

[Event "Titled Tuesday Blitz November 01 Late 2022"]
[White "Kobla, Vishal"]
[Black "Paszewski, Mateusz"]
[WhiteFideId "2078457"]
[BlackFideId "1141058"]
[WhiteElo "1972"]
[BlackElo "2213"]
[Result "0-1"]
[Round "01"]
[TimeControl "180+1"]
[Date "2022.11.02"]
[WhiteClock "0:00:23"]
[BlackClock "0:00:05"]

1. e4 {[%clk 0:02:59]}  c6 {[%clk 0:02:58]} 2. d4 {[%clk 0:02:59]}  d5 {[%clk 0:02:59]} 3. Nc3 {[%clk 0:02:59]}  dxe4 {[%clk 0:03:00]} 4. Nxe4 {[%clk 0:03:00]}  Nf6 {[%clk 0:03:00]} 5. Nxf6+ {[%clk 0:03:01]}  exf6 {[%clk 0:03:01]} 6. c3 {[%clk 0:03:01]}  Bd6 {[%clk 0:03:02]} 7. Bd3 {[%clk 0:03:02]}  O-O {[%clk 0:03:02]} 8. Qc2 {[%clk 0:03:03]}  Re8+ {[%clk 0:03:03]} 9. Ne2 {[%clk 0:03:04]}  h5 {[%clk 0:03:03]} 10. Be3 {[%clk 0:03:00]}  Nd7 {[%clk 0:03:01]} 11. O-O-O {[%clk 0:03:00]}  Nf8 {[%clk 0:03:01]} 12. h3 {[%clk 0:02:54]}  Be6 {[%clk 0:02:59]} 13. Kb1 {[%clk 0:02:52]}  b5 {[%clk 0:02:57]} 14. Be4 {[%clk 0:02:50]}  Rc8 {[%clk 0:02:56]} 15. Nf4 {[%clk 0:02:40]}  Bxf4 {[%clk 0:02:49]} 16. Bxf4 {[%clk 0:02:41]}  Ng6 {[%clk 0:02:48]} 17. Bxg6 {[%clk 0:02:32]}  fxg6 {[%clk 0:02:48]} 18. Qxg6 {[%clk 0:02:33]}  Qd5 {[%clk 0:02:48]} 19. g4 {[%clk 0:02:15]}  Qxa2+ {[%clk 0:02:46]} 20. Kc1 {[%clk 0:02:15]}  b4 {[%clk 0:01:56]} 21. gxh5 {[%clk 0:02:05]}  bxc3 {[%clk 0:01:52]} 22. bxc3 {[%clk 0:02:05]}  Qa3+ {[%clk 0:01:23]} 23. Kd2 {[%clk 0:02:02]}  Bf5 {[%clk 0:01:04]} 24. Qxf5 {[%clk 0:01:57]}  Qb2+ {[%clk 0:01:04]} 25. Qc2 {[%clk 0:01:42]}  Re2+ {[%clk 0:01:04]} 26. Kxe2 {[%clk 0:01:43]}  Qxc2+ {[%clk 0:01:05]} 27. Bd2 {[%clk 0:01:43]}  Qe4+ {[%clk 0:00:39]} 28. Be3 {[%clk 0:01:42]}  Rb8 {[%clk 0:00:39]} 29. Rhg1 {[%clk 0:01:35]}  Kf7 {[%clk 0:00:24]} 30. h6 {[%clk 0:01:34]}  gxh6 {[%clk 0:00:20]} 31. Rd2 {[%clk 0:01:30]}  f5 {[%clk 0:00:17]} 32. f3 {[%clk 0:01:28]}  Qe6 {[%clk 0:00:15]} 33. Kd3 {[%clk 0:01:22]}  f4 {[%clk 0:00:12]} 34. Bxf4 {[%clk 0:01:19]}  Qf5+ {[%clk 0:00:12]} 35. Ke3 {[%clk 0:01:19]}  Re8+ {[%clk 0:00:12]} 36. Be5 {[%clk 0:01:20]}  Rxe5+ {[%clk 0:00:06]} 37. dxe5 {[%clk 0:01:21]}  Qxe5+ {[%clk 0:00:07]} 38. Kd3 {[%clk 0:01:02]}  Qd5+ {[%clk 0:00:07]} 39. Kc2 {[%clk 0:00:59]}  Qxf3 {[%clk 0:00:06]} 40. Rd7+ {[%clk 0:00:54]}  Ke6 {[%clk 0:00:06]} 41. Rgd1 {[%clk 0:00:55]}  Qxh3 {[%clk 0:00:05]} 42. R7d6+ {[%clk 0:00:53]}  Ke7 {[%clk 0:00:05]} 43. R6d2 {[%clk 0:00:50]}  Qf5+ {[%clk 0:00:06]} 44. Kb2 {[%clk 0:00:50]}  h5 {[%clk 0:00:06]} 45. Re1+ {[%clk 0:00:50]}  Kf7 {[%clk 0:00:07]} 46. Ree2 {[%clk 0:00:50]}  Qb5+ {[%clk 0:00:07]} 47. Kc2 {[%clk 0:00:51]}  h4 {[%clk 0:00:08]} 48. Rf2+ {[%clk 0:00:51]}  Kg6 {[%clk 0:00:09]} 49. Rf4 {[%clk 0:00:50]}  Kg5 {[%clk 0:00:08]} 50. Rfd4 {[%clk 0:00:46]}  h3 {[%clk 0:00:08]} 51. R4d3 {[%clk 0:00:41]}  Qf5 {[%clk 0:00:08]} 52. Kd1 {[%clk 0:00:37]}  Qf1+ {[%clk 0:00:08]} 53. Kc2 {[%clk 0:00:38]}  Qf5 {[%clk 0:00:06]} 54. Kd1 {[%clk 0:00:38]}  a5 {[%clk 0:00:07]} 55. Ke1 {[%clk 0:00:27]}  Qe4+ {[%clk 0:00:06]} 56. Kd1 {[%clk 0:00:25]}  Qg4+ {[%clk 0:00:06]} 57. Kc2 {[%clk 0:00:26]}  Qe4 {[%clk 0:00:06]} 58. Kb3 {[%clk 0:00:25]}  a4+ {[%clk 0:00:05]} 59. Ka3 {[%clk 0:00:26]}  Qc4 {[%clk 0:00:05]} 60. Rxh3 {[%clk 0:00:23]}  Qb3# {[%clk 0:00:05]} 0-1


[Site "https://www.chess.com"]

[Event "Titled Tuesday Blitz November 01 Late 2022"]
[White "Kollars, Dmitrij"]
[Black "Leenhouts, Koen"]
[WhiteFideId "12909572"]
[BlackFideId "1008439"]
[WhiteElo "2584"]
[BlackElo "2409"]
[Result "1-0"]
[Round "01"]
[TimeControl "180+1"]
[Date "2022.11.01"]
[WhiteClock "0:02:29"]
[BlackClock "0:01:26"]

1. Nf3 {[%clk 0:02:58]}  Nf6 {[%clk 0:02:59]} 2. g3 {[%clk 0:02:56]}  e6 {[%clk 0:02:59]} 3. Bg2 {[%clk 0:02:56]}  d5 {[%clk 0:03:00]} 4. O-O {[%clk 0:02:57]}  Be7 {[%clk 0:03:00]} 5. d4 {[%clk 0:02:57]}  O-O {[%clk 0:03:00]} 6. b3 {[%clk 0:02:58]}  b6 {[%clk 0:02:58]} 7. c4 {[%clk 0:02:58]}  Bb7 {[%clk 0:02:58]} 8. Ne5 {[%clk 0:02:54]}  Nbd7 {[%clk 0:02:54]} 9. Nc3 {[%clk 0:02:53]}  c6 {[%clk 0:02:32]} 10. Bf4 {[%clk 0:02:48]}  Rc8 {[%clk 0:02:31]} 11. e4 {[%clk 0:02:44]}  dxc4 {[%clk 0:02:21]} 12. Nxc4 {[%clk 0:02:40]}  c5 {[%clk 0:02:11]} 13. d5 {[%clk 0:02:37]}  exd5 {[%clk 0:02:10]} 14. exd5 {[%clk 0:02:38]}  b5 {[%clk 0:01:26]} 15. Nxb5 {[%clk 0:02:35]}  Ba6 {[%clk 0:01:26]} 16. Nxa7 {[%clk 0:02:29]} 1-0


[Site "https://www.chess.com"]

[Event "Titled Tuesday Blitz November 01 Late 2022"]
[White "Korchmar, Vasiliy"]
[Black "Schrik, Rachid"]
[WhiteFideId "24131750"]
[BlackFideId "1009818"]
[WhiteElo "2370"]
[BlackElo "2098"]
[Result "1-0"]
[Round "01"]
[TimeControl "180+1"]
[Date "2022.11.02"]
[WhiteClock "0:00:02"]
[BlackClock "0:00:04"]

1. e4 {[%clk 0:03:00]}  c5 {[%clk 0:02:57]} 2. Nf3 {[%clk 0:03:00]}  Nc6 {[%clk 0:02:57]} 3. d4 {[%clk 0:03:01]}  cxd4 {[%clk 0:02:58]} 4. Nxd4 {[%clk 0:03:02]}  e5 {[%clk 0:02:58]} 5. Nb5 {[%clk 0:03:01]}  d6 {[%clk 0:02:59]} 6. c4 {[%clk 0:03:01]}  Be6 {[%clk 0:02:57]} 7. Bd3 {[%clk 0:02:55]}  g6 {[%clk 0:02:47]} 8. O-O {[%clk 0:02:55]}  a6 {[%clk 0:02:46]} 9. N5c3 {[%clk 0:02:54]}  Bg7 {[%clk 0:02:47]} 10. Nd5 {[%clk 0:02:52]}  h6 {[%clk 0:02:39]} 11. Nbc3 {[%clk 0:02:50]}  Nge7 {[%clk 0:02:38]} 12. Be3 {[%clk 0:02:50]}  Nd4 {[%clk 0:02:30]} 13. Qd2 {[%clk 0:02:50]}  g5 {[%clk 0:02:14]} 14. a4 {[%clk 0:02:43]}  Ng6 {[%clk 0:02:12]} 15. a5 {[%clk 0:02:40]}  Nf4 {[%clk 0:02:11]} 16. Bxd4 {[%clk 0:02:18]}  Bxd5 {[%clk 0:01:52]} 17. Bb6 {[%clk 0:02:14]}  Qd7 {[%clk 0:01:32]} 18. Nxd5 {[%clk 0:02:14]}  Nxg2 {[%clk 0:01:29]} 19. f3 {[%clk 0:01:50]}  Nf4 {[%clk 0:01:24]} 20. Nc7+ {[%clk 0:01:42]}  Kf8 {[%clk 0:01:22]} 21. Nxa8 {[%clk 0:01:41]}  Rg8 {[%clk 0:01:22]} 22. Nc7 {[%clk 0:01:30]}  g4 {[%clk 0:01:21]} 23. Nd5 {[%clk 0:01:31]}  gxf3 {[%clk 0:01:14]} 24. Nxf4 {[%clk 0:01:29]}  exf4 {[%clk 0:01:08]} 25. Kh1 {[%clk 0:01:29]}  Qh3 {[%clk 0:00:58]} 26. Qf2 {[%clk 0:01:25]}  Bd4 {[%clk 0:00:48]} 27. Bxd4 {[%clk 0:00:44]}  Rg2 {[%clk 0:00:42]} 28. Qg1 {[%clk 0:00:44]}  Rxg1+ {[%clk 0:00:13]} 29. Rxg1 {[%clk 0:00:45]}  f2 {[%clk 0:00:13]} 30. Bxf2 {[%clk 0:00:42]}  Qxd3 {[%clk 0:00:10]} 31. c5 {[%clk 0:00:18]}  Qxe4+ {[%clk 0:00:07]} 32. Rg2 {[%clk 0:00:18]}  d5 {[%clk 0:00:05]} 33. Re1 {[%clk 0:00:16]}  Qf3 {[%clk 0:00:04]} 34. Bd4 {[%clk 0:00:16]}  f5 {[%clk 0:00:04]} 35. b4 {[%clk 0:00:14]}  Qd3 {[%clk 0:00:03]} 36. Be5 {[%clk 0:00:09]}  f3 {[%clk 0:00:03]} 37. Rf2 {[%clk 0:00:09]}  Qc4 {[%clk 0:00:01]} 38. Ref1 {[%clk 0:00:04]}  Qg4 {[%clk 0:00:02]} 39. Bd6+ {[%clk 0:00:04]}  Ke8 {[%clk 0:00:03]} 40. b5 {[%clk 0:00:04]}  axb5 {[%clk 0:00:03]} 41. a6 {[%clk 0:00:04]}  bxa6 {[%clk 0:00:03]} 42. c6 {[%clk 0:00:04]}  Qc4 {[%clk 0:00:02]} 43. c7 {[%clk 0:00:05]}  Qc6 {[%clk 0:00:02]} 44. Bf4 {[%clk 0:00:04]}  Kd7 {[%clk 0:00:03]} 45. Rxf3 {[%clk 0:00:05]}  d4 {[%clk 0:00:03]} 46. Kg1 {[%clk 0:00:05]}  Qe4 {[%clk 0:00:04]} 47. Kf2 {[%clk 0:00:03]}  d3 {[%clk 0:00:04]} 48. Re1 {[%clk 0:00:03]}  Qd4+ {[%clk 0:00:03]} 49. Kg3 {[%clk 0:00:02]}  Qg7+ {[%clk 0:00:03]} 50. Kf2 {[%clk 0:00:02]}  Qd4+ {[%clk 0:00:04]} 51. Kg2 {[%clk 0:00:02]}  Qg7+ {[%clk 0:00:04]} 52. Kh1 {[%clk 0:00:02]}  Qd4 {[%clk 0:00:04]} 53. Re7+ {[%clk 0:00:02]}  Kc8 {[%clk 0:00:04]} 54. Re8+ {[%clk 0:00:02]}  Kd7 {[%clk 0:00:04]} 55. c8=Q# {[%clk 0:00:02]} 1-0


[Site "https://www.chess.com"]

[Event "Titled Tuesday Blitz November 01 Late 2022"]
[White "Krishnan, Varun"]
[Black "Predke, Alexandr"]
[WhiteFideId "5054508"]
[BlackFideId "24107581"]
[WhiteElo "2493"]
[BlackElo "2614"]
[Result "0-1"]
[Round "01"]
[TimeControl "180+1"]
[Date "2022.11.02"]
[WhiteClock "0:00:01"]
[BlackClock "0:00:04"]

1. e4 {[%clk 0:03:00]}  c5 {[%clk 0:02:59]} 2. Nf3 {[%clk 0:03:00]}  e6 {[%clk 0:02:59]} 3. d4 {[%clk 0:02:59]}  cxd4 {[%clk 0:03:00]} 4. Nxd4 {[%clk 0:02:59]}  Nc6 {[%clk 0:03:00]} 5. Nc3 {[%clk 0:02:59]}  Qc7 {[%clk 0:03:00]} 6. Be2 {[%clk 0:02:58]}  Nf6 {[%clk 0:02:57]} 7. Be3 {[%clk 0:02:57]}  a6 {[%clk 0:02:55]} 8. a4 {[%clk 0:02:54]}  Bb4 {[%clk 0:02:46]} 9. O-O {[%clk 0:02:54]}  Bxc3 {[%clk 0:02:45]} 10. bxc3 {[%clk 0:02:52]}  Nxe4 {[%clk 0:02:45]} 11. Bd3 {[%clk 0:02:51]}  Nf6 {[%clk 0:02:38]} 12. Bg5 {[%clk 0:02:44]}  d6 {[%clk 0:02:27]} 13. Nxc6 {[%clk 0:02:27]}  Qxc6 {[%clk 0:02:09]} 14. Qd2 {[%clk 0:02:15]}  Bd7 {[%clk 0:01:57]} 15. Qf4 {[%clk 0:01:50]}  Nd5 {[%clk 0:01:46]} 16. Qh4 {[%clk 0:01:48]}  Nxc3 {[%clk 0:01:41]} 17. Rfe1 {[%clk 0:01:30]}  Nxa4 {[%clk 0:01:18]} 18. Be4 {[%clk 0:01:16]}  d5 {[%clk 0:01:17]} 19. Bxh7 {[%clk 0:01:07]}  Qc4 {[%clk 0:00:55]} 20. Qh3 {[%clk 0:00:52]}  Nc3 {[%clk 0:00:49]} 21. Re3 {[%clk 0:00:38]}  Ne2+ {[%clk 0:00:42]} 22. Kh1 {[%clk 0:00:36]}  Nf4 {[%clk 0:00:42]} 23. Qg3 {[%clk 0:00:20]}  Rxh7 {[%clk 0:00:32]} 24. Bxf4 {[%clk 0:00:20]}  Kf8 {[%clk 0:00:27]} 25. Rc3 {[%clk 0:00:18]}  Qe4 {[%clk 0:00:25]} 26. Rc7 {[%clk 0:00:16]}  Bc6 {[%clk 0:00:26]} 27. Be3 {[%clk 0:00:09]}  Kg8 {[%clk 0:00:23]} 28. c3 {[%clk 0:00:08]}  e5 {[%clk 0:00:15]} 29. h3 {[%clk 0:00:07]}  f6 {[%clk 0:00:10]} 30. Rd1 {[%clk 0:00:05]}  Rf8 {[%clk 0:00:10]} 31. Bc5 {[%clk 0:00:04]}  Re8 {[%clk 0:00:09]} 32. Be7 {[%clk 0:00:01]}  Qf5 {[%clk 0:00:08]} 33. Bd6 {[%clk 0:00:01]}  Qe6 {[%clk 0:00:08]} 34. Bc5 {[%clk 0:00:02]}  Kh8 {[%clk 0:00:06]} 35. Re1 {[%clk 0:00:02]}  Rg8 {[%clk 0:00:06]} 36. Bd4 {[%clk 0:00:02]}  Qf5 {[%clk 0:00:07]} 37. Be3 {[%clk 0:00:02]}  a5 {[%clk 0:00:07]} 38. c4 {[%clk 0:00:02]}  d4 {[%clk 0:00:07]} 39. Bd2 {[%clk 0:00:03]}  a4 {[%clk 0:00:07]} 40. c5 {[%clk 0:00:03]}  Qc2 {[%clk 0:00:07]} 41. Ba5 {[%clk 0:00:02]}  Qb2 {[%clk 0:00:05]} 42. Bb6 {[%clk 0:00:03]}  a3 {[%clk 0:00:05]} 43. Ba5 {[%clk 0:00:03]}  a2 {[%clk 0:00:05]} 44. Qg6 {[%clk 0:00:02]}  a1=Q {[%clk 0:00:05]} 45. Rxa1 {[%clk 0:00:02]}  Qxa1+ {[%clk 0:00:06]} 46. Kh2 {[%clk 0:00:03]}  Qxa5 {[%clk 0:00:06]} 47. Rxg7 {[%clk 0:00:03]}  Rgxg7 {[%clk 0:00:06]} 48. Qxf6 {[%clk 0:00:02]}  Qa8 {[%clk 0:00:04]} 49. Qxe5 {[%clk 0:00:02]}  Qd8 {[%clk 0:00:04]} 50. g3 {[%clk 0:00:02]}  d3 {[%clk 0:00:04]} 51. h4 {[%clk 0:00:01]}  d2 {[%clk 0:00:04]} 52. Qxg7+ {[%clk 0:00:01]}  Rxg7 {[%clk 0:00:04]} 0-1


[Site "https://www.chess.com"]

[Event "Titled Tuesday Blitz November 01 Late 2022"]
[White "Leschinsky, Gary"]
[Black "Tarigan, Gilbert Elroy"]
[WhiteFideId "30951321"]
[BlackFideId "7108133"]
[WhiteElo "1855"]
[BlackElo "2284"]
[Result "0-1"]
[Round "01"]
[TimeControl "180+1"]
[Date "2022.11.02"]
[WhiteClock "0:01:42"]
[BlackClock "0:01:23"]

1. d4 {[%clk 0:03:00]}  Nf6 {[%clk 0:02:57]} 2. c4 {[%clk 0:03:00]}  c5 {[%clk 0:02:56]} 3. d5 {[%clk 0:03:00]}  b5 {[%clk 0:02:56]} 4. cxb5 {[%clk 0:03:00]}  a6 {[%clk 0:02:56]} 5. b6 {[%clk 0:03:00]}  g6 {[%clk 0:02:51]} 6. Nc3 {[%clk 0:02:58]}  Qxb6 {[%clk 0:02:42]} 7. e4 {[%clk 0:02:55]}  d6 {[%clk 0:02:36]} 8. Nf3 {[%clk 0:02:55]}  Bg7 {[%clk 0:02:36]} 9. Nd2 {[%clk 0:02:54]}  O-O {[%clk 0:02:34]} 10. Nc4 {[%clk 0:02:53]}  Qd8 {[%clk 0:02:31]} 11. Bd3 {[%clk 0:02:48]}  a5 {[%clk 0:02:31]} 12. O-O {[%clk 0:02:47]}  Ng4 {[%clk 0:02:23]} 13. h3 {[%clk 0:02:42]}  Ne5 {[%clk 0:02:23]} 14. Nxe5 {[%clk 0:02:43]}  Bxe5 {[%clk 0:02:24]} 15. Be3 {[%clk 0:02:43]}  Ba6 {[%clk 0:02:19]} 16. f4 {[%clk 0:02:35]}  Bg7 {[%clk 0:02:19]} 17. Rb1 {[%clk 0:02:33]}  Bxd3 {[%clk 0:02:17]} 18. Qxd3 {[%clk 0:02:34]}  Na6 {[%clk 0:02:16]} 19. a3 {[%clk 0:02:32]}  Qc8 {[%clk 0:02:09]} 20. Qc4 {[%clk 0:02:30]}  Nc7 {[%clk 0:02:06]} 21. a4 {[%clk 0:02:24]}  Qa6 {[%clk 0:02:05]} 22. Nb5 {[%clk 0:02:21]}  Rfb8 {[%clk 0:02:02]} 23. e5 {[%clk 0:02:13]}  Nxb5 {[%clk 0:01:57]} 24. axb5 {[%clk 0:02:12]}  Qxb5 {[%clk 0:01:58]} 25. Qe4 {[%clk 0:02:10]}  Qb4 {[%clk 0:01:58]} 26. Qf3 {[%clk 0:02:09]}  Qb3 {[%clk 0:01:51]} 27. Kh1 {[%clk 0:02:05]}  a4 {[%clk 0:01:50]} 28. Rbe1 {[%clk 0:01:57]}  Qxb2 {[%clk 0:01:44]} 29. exd6 {[%clk 0:01:56]}  exd6 {[%clk 0:01:44]} 30. f5 {[%clk 0:01:51]}  Rb7 {[%clk 0:01:39]} 31. Qe4 {[%clk 0:01:46]}  a3 {[%clk 0:01:32]} 32. Rb1 {[%clk 0:01:44]}  Qxb1 {[%clk 0:01:22]} 33. Rxb1 {[%clk 0:01:42]}  Rxb1+ {[%clk 0:01:23]} 34. Qxb1 {[%clk 0:01:42]}  a2 {[%clk 0:01:23]} 0-1


[Site "https://www.chess.com"]

[Event "Titled Tuesday Blitz November 01 Late 2022"]
[White "Mahdavi, Reza"]
[Black "Hajiyev, Kanan"]
[WhiteFideId "12595926"]
[BlackFideId "13404148"]
[WhiteElo "2240"]
[BlackElo "2118"]
[Result "1-0"]
[Round "01"]
[TimeControl "180+1"]
[Date "2022.11.02"]
[WhiteClock "0:00:19"]
[BlackClock "0:00:13"]

1. e4 {[%clk 0:03:00]}  c6 {[%clk 0:02:59]} 2. d4 {[%clk 0:03:01]}  d5 {[%clk 0:03:00]} 3. e5 {[%clk 0:03:01]}  a6 {[%clk 0:02:58]} 4. Nf3 {[%clk 0:03:00]}  Bg4 {[%clk 0:02:50]} 5. c4 {[%clk 0:02:56]}  e6 {[%clk 0:02:48]} 6. Nc3 {[%clk 0:02:54]}  Nd7 {[%clk 0:02:38]} 7. h3 {[%clk 0:02:44]}  Bh5 {[%clk 0:02:38]} 8. Be2 {[%clk 0:02:34]}  Bb4 {[%clk 0:02:30]} 9. O-O {[%clk 0:02:32]}  Ne7 {[%clk 0:02:28]} 10. Qb3 {[%clk 0:02:32]}  Bxc3 {[%clk 0:02:09]} 11. bxc3 {[%clk 0:02:33]}  dxc4 {[%clk 0:02:01]} 12. Qxc4 {[%clk 0:02:31]}  O-O {[%clk 0:01:59]} 13. Ba3 {[%clk 0:02:30]}  Re8 {[%clk 0:01:57]} 14. Rab1 {[%clk 0:02:28]}  b5 {[%clk 0:01:51]} 15. Qb3 {[%clk 0:02:15]}  Nb6 {[%clk 0:01:47]} 16. Rfe1 {[%clk 0:02:06]}  Ned5 {[%clk 0:01:42]} 17. Bc5 {[%clk 0:01:43]}  a5 {[%clk 0:01:34]} 18. Rbc1 {[%clk 0:01:23]}  Nf4 {[%clk 0:01:30]} 19. Bxb6 {[%clk 0:01:10]}  Qxb6 {[%clk 0:01:27]} 20. c4 {[%clk 0:00:47]}  Nxe2+ {[%clk 0:01:10]} 21. Rxe2 {[%clk 0:00:47]}  Bxf3 {[%clk 0:01:10]} 22. Qxf3 {[%clk 0:00:48]}  Qxd4 {[%clk 0:01:08]} 23. Qxc6 {[%clk 0:00:48]}  bxc4 {[%clk 0:00:59]} 24. Qxc4 {[%clk 0:00:38]}  Qxc4 {[%clk 0:00:59]} 25. Rxc4 {[%clk 0:00:39]}  Rec8 {[%clk 0:00:58]} 26. Rec2 {[%clk 0:00:40]}  Rxc4 {[%clk 0:00:57]} 27. Rxc4 {[%clk 0:00:41]}  g6 {[%clk 0:00:43]} 28. a4 {[%clk 0:00:40]}  Kf8 {[%clk 0:00:37]} 29. Rc5 {[%clk 0:00:41]}  Ke7 {[%clk 0:00:36]} 30. Rc7+ {[%clk 0:00:41]}  Kf8 {[%clk 0:00:32]} 31. Kf1 {[%clk 0:00:28]}  h5 {[%clk 0:00:32]} 32. Ke2 {[%clk 0:00:28]}  Kg7 {[%clk 0:00:29]} 33. Ke3 {[%clk 0:00:27]}  g5 {[%clk 0:00:26]} 34. Rc5 {[%clk 0:00:27]}  Kg6 {[%clk 0:00:25]} 35. g4 {[%clk 0:00:28]}  h4 {[%clk 0:00:24]} 36. Kd3 {[%clk 0:00:23]}  Rb8 {[%clk 0:00:20]} 37. Rb5 {[%clk 0:00:20]}  Rd8+ {[%clk 0:00:19]} 38. Ke2 {[%clk 0:00:20]}  Ra8 {[%clk 0:00:17]} 39. Ke3 {[%clk 0:00:20]}  Rc8 {[%clk 0:00:16]} 40. Kd2 {[%clk 0:00:19]}  Rd8+ {[%clk 0:00:13]} 41. Kc2 {[%clk 0:00:20]}  Rc8+ {[%clk 0:00:13]} 42. Kb2 {[%clk 0:00:20]}  Rd8 {[%clk 0:00:14]} 43. Kc3 {[%clk 0:00:17]}  Rc8+ {[%clk 0:00:14]} 44. Kd4 {[%clk 0:00:18]}  Rd8+ {[%clk 0:00:14]} 45. Kc4 {[%clk 0:00:16]}  Rd2 {[%clk 0:00:13]} 46. Rxa5 {[%clk 0:00:16]}  Rxf2 {[%clk 0:00:14]} 47. Rb5 {[%clk 0:00:16]}  Rf3 {[%clk 0:00:14]} 48. Rb3 {[%clk 0:00:17]}  Rf4+ {[%clk 0:00:13]} 49. Kb5 {[%clk 0:00:17]}  Re4 {[%clk 0:00:13]} 50. a5 {[%clk 0:00:17]}  Rxe5+ {[%clk 0:00:14]} 51. Kb6 {[%clk 0:00:18]}  Re1 {[%clk 0:00:13]} 52. a6 {[%clk 0:00:17]}  Ra1 {[%clk 0:00:13]} 53. a7 {[%clk 0:00:17]}  f5 {[%clk 0:00:13]} 54. gxf5+ {[%clk 0:00:18]}  exf5 {[%clk 0:00:14]} 55. Kb7 {[%clk 0:00:18]}  g4 {[%clk 0:00:14]} 56. Rb6+ {[%clk 0:00:17]}  Kg5 {[%clk 0:00:14]} 57. Ra6 {[%clk 0:00:18]}  Rb1+ {[%clk 0:00:13]} 58. Kc7 {[%clk 0:00:17]}  Rc1+ {[%clk 0:00:14]} 59. Kd7 {[%clk 0:00:18]}  Rd1+ {[%clk 0:00:13]} 60. Ke7 {[%clk 0:00:18]}  Re1+ {[%clk 0:00:13]} 61. Kf7 {[%clk 0:00:19]} 1-0


[Site "https://www.chess.com"]